[Event "WSTCC-65 2024"]
[Site "Krakow"]
[Date "2024.07.02"]
[Round "1.10"]
[White "Barreto, Ignacio C. de Barros"]
[Black "Baker, Chris W"]
[Result "1/2-1/2"]
[ECO "A28"]
[WhiteElo "2059"]
[BlackElo "2198"]
[Annotator "RC"]
[PlyCount "78"]
[EventDate "2024.07.01"]
[EventType "team-tourn"]
[EventCountry "POL"]
[SourceTitle "playchess.com"]
[Source "ChessBase"]
[SourceQuality "1"]
[TimeControl "40/5400+30:1800+30"]

1. c4 {[%emt 0:00:26]} e5 {[%emt 0:01:35]} 2. Nc3 {[%emt 0:00:29]} Nf6 {[%emt 0:01:07]} 3. Nf3 {[%emt 0:01:00]} Nc6 {[%emt 0:01:18]} 4. a3 {[%emt 0:01:33]} a5 {[%emt 0:03:36]} 5. e3 {[%emt 0:01:32]} d5 {[%emt 0:07:29]} 6. cxd5 {[%emt 0:11:10]} Nxd5 {[%emt 0:00:11]} 7. Bb5 {[%emt 0:02:28]} Nxc3 {[%emt 0:02:30]} 8. bxc3 {[%emt 0:03:17]} Bd6 {[%emt 0:16:30]} 9. d4 {[%emt 0:11:26]} Bd7 {[%emt 0:03:51]} 10. e4 {[%emt 0:12:15]} O-O {[%emt 0:10:11]} 11. O-O {[%emt 0:11:01]} h6 {[%emt 0:04:39]} 12. dxe5 {[%emt 0:19:28]} Nxe5 {[%emt 0:01:46]} 13. Bxd7 {[%emt 0:00:13]} Nxd7 {[%emt 0:01:10]} 14. Nd4 {[%emt 0:01:55]} Qh4 {[%emt 0:09:15]} 15. f4 {[%emt 0:01:04]} Bc5 {[%emt 0:01:01]} 16. Kh1 {[%emt 0:00:37]} Nf6 {[%emt 0:03:58]} 17. Qf3 {[%emt 0:03:25]} Qg4 {[%emt 0:03:12]} 18. e5 {[%emt 0:05:57]} Qxf3 {[%emt 0:02:10]} 19. Rxf3 {[%emt 0:00:45]} Nd5 {[%emt 0:03:12]} 20. Nb3 {[%emt 0:01:22]} Be7 {[%emt 0:01:36]} 21. f5 {[%emt 0:01:55]} Rfd8 {[%emt 0:01:06]} 22. Bd2 {[%emt 0:03:07]} Nb6 {[%emt 0:02:22]} 23. f6 {[%emt 0:00:47]} Bf8 {[%emt 0:01:21]} 24. fxg7 {[%emt 0:03:54]} Bxg7 {[%emt 0:00:34]} 25. Raf1 {[%emt 0:00:14]} a4 {[%emt 0:01:36]} 26. Nd4 {[%emt 0:00:14]} c5 {[%emt 0:00:58]} 27. Nf5 {[%emt 0:00:25]} Rxd2 {[%emt 0:00:49]} 28. Rg3 {[%emt 0:00:03]} Rad8 {[%emt 0:02:01]} 29. Rxg7+ {[%emt 0:00:45]} Kh8 {[%emt 0:00:17]} 30. Rxf7 {[%emt 0:00:14]} Re8 {[%emt 0:03:31]} 31. Rxb7 {[%emt 0:00:48]} Nc4 {[%emt 0:00:45]} 32. Nxh6 {[%emt 0:01:16]} Nxe5 {[%emt 0:00:19]} 33. Re1 {[%emt 0:00:25]} Re6 {[%emt 0:00:59]} 34. h3 {[%emt 0:00:01]} Nf3 {[%emt 0:01:23]} 35. Rb8+ {[%emt 0:01:00]} Kh7 {[%emt 0:00:15]} 36. Rb7+ {[%emt 0:00:20]} Kh8 {[%emt 0:00:04]} 37. Nf7+ {[%emt 0:00:55]} Kg8 {[%emt 0:00:22]} 38. Rf1 {[%emt 0:00:22]} Rf2 {[%emt 0:00:28]} 39. Rd1 {[%emt 0:00:42]} Rd2 {[%emt 0:00:29]} 1/2-1/2

[Event "WSTCC-65 2024"]
[Site "Krakow"]
[Date "2024.07.02"]
[Round "1.10"]
[White "Fletcher, John"]
[Black "Legky, Nikolay A"]
[Result "0-1"]
[ECO "B07"]
[WhiteElo "2007"]
[BlackElo "2339"]
[Annotator "TA"]
[PlyCount "58"]
[EventDate "2024.07.01"]
[EventType "team-tourn"]
[EventCountry "POL"]
[SourceTitle "playchess.com"]
[Source "ChessBase"]
[SourceQuality "1"]
[TimeControl "40/5400+30:1800+30"]

{[%evp 10,58,17,13,14,-21,-10,-68,-57,-64,-25,-51,-36,-26,-34,-66,-76,-77,-63,-58,-63,-100,-112,-110,-83,-88,-96,-198,-158,-211,-202,-195,-162,-159,-132,-179,-117,-234,-178,-255,-261,-355,-318,-313,-302,-303,-297,-322,-314,-291,-248]} 1. d4 {[%emt 0:00:03]} d6 {[%emt 0:00:06][%cal Bd7d6,Bd6d5][%mdl 32]} 2. e4 {[%emt 0:01:02]} Nf6 {[%emt 0:00:06]} 3. Nc3 {[%emt 0:00:13]} g6 {[%emt 0:00:05]} 4. Be2 {[%emt 0:01:41]} Bg7 {[%emt 0:00:58]} 5. g4 {[%emt 0:05:15]} d5 {[%emt 0:00:16]} 6. e5 {[%emt 0:04:47]} Ne4 {[%emt 0:00:20]} 7. Nxe4 {[%emt 0:01:13]} dxe4 {[%emt 0:00:05]} 8. Be3 {[%emt 0:04:44] [#]} (8. b4 $11) 8... c5 $1 $15 {[%emt 0:00:08] Black is slightly better.} 9. c3 {[%emt 0:02:57]} (9. dxc5 O-O) 9... cxd4 {[%emt 0:03:09]} 10. cxd4 {[%emt 0:04:42]} Qa5+ {[%emt 0:00:08]} 11. Kf1 {[%emt 0:03:58]} Nc6 {[%emt 0:04:18]} 12. Qc2 {[%emt 0:13:24][%cal Oc2c3]} Be6 {[%emt 0:03:44]} 13. Nh3 {[%emt 0:04:13][%cal Oh3f4]} Rc8 {[%emt 0:04:44][%cal Oc6d4,Ba8c8,Bc8c2,Bc2a2][%mdl 32] [#] aiming for ...Nxd4!} (13... Bxa2 $2 14. Kg2 $18) 14. Qc3 {[%emt 0:06:43]} h5 {[%emt 0:35:15]} (14... Bxa2 $2 15. Qxa5 Nxa5 16. Rxa2 $18) 15. Nf4 {[%emt 0:14:47] Nxe6 would now be deadly. White is now going downhill.} Bxg4 {[%emt 0:01:56]} 16. Bxg4 {[%emt 0:07:22]} hxg4 {[%emt 0:00:05]} 17. Qxa5 {[%emt 0:00:14]} Nxa5 {[%emt 0:00:05]} 18. e6 {[%emt 0:04:49]} (18. Kg2 $17) 18... Rc2 {[%emt 0:02:23]} 19. b3 {[%emt 0:03:55] Against Nc4} (19. Rc1 $17 {might work better.} Rxc1+ (19... Rxb2 20. Rc8#) 20. Bxc1) 19... Nc6 $19 {[%emt 0:06:39]} 20. Rd1 {[%emt 0:01:01]} g3 {[%emt 0:11:42]} 21. fxg3 {[%emt 0:03:32]} Rxa2 {[%emt 0:04:09] Black is more active.} (21... Rcxh2 22. Rxh2 Rxh2 23. d5 $15) 22. h4 {[%emt 0:05:03]} (22. d5 $17 {keeps fighting.} Ne5 (22... Rhxh2 $2 23. Rxh2 Rxh2 24. dxc6 $18) 23. Rd2 Rxd2 24. Bxd2) 22... O-O {[%emt 0:01:46]} ({Black should play} 22... Nb4 $19 {Threatens to win with ...Nc2.} 23. Kg1 (23. exf7+ $2 Kxf7 24. Bg1 g5 $19) 23... O-O) 23. Kg1 {[%emt 0:01:43]} (23. exf7+ Rxf7 (23... Kxf7 24. Rg1 $17) 24. d5 Nb4 $19) (23. d5 $17 {was worth a try.} Ne5 24. Rd2) 23... Rd8 {[%emt 0:00:41][%cal Rg7d4]} 24. exf7+ {[%emt 0:01:43]} (24. d5 {was called for.} Ne5 25. h5 Nf3+ 26. Kf1 gxh5 (26... g5 27. exf7+ Kxf7 28. Ne6 $17) 27. Rxh5) 24... Kxf7 {[%emt 0:00:07]} 25. Rf1 {[%emt 0:00:17]} Bxd4 {[%emt 0:04:49]} 26. Ne2+ {[%emt 0:01:57] Black has a decisive advantage.} Kg7 {[%emt 0:01:24]} 27. Nxd4 {[%emt 0:01:17]} Nxd4 {[%emt 0:00:05]} 28. Bxd4+ Rxd4 29. Rh2 {[%emt 0:00:55]} Rdd2 {[%emt 0:05:40] Weighted Error Value: White=0.30/Black=0.19 (very precise) .  Mistake:       	White=6     	Black=1      Inaccurate:     	White=5     	Black=1      OK:         	White=6     	Black=4      Best:        	---       	Black=1      Brilliant:      	---       	Black=1} 0-1

[Event "WSTCC-65 2024"]
[Site "Krakow"]
[Date "2024.07.02"]
[Round "1.11"]
[White "Roos, Louis"]
[Black "Van Kemenade, Rudy"]
[Result "1-0"]
[ECO "A04"]
[WhiteElo "2288"]
[BlackElo "1960"]
[Annotator "NA RC"]
[PlyCount "53"]
[EventDate "2024.07.01"]
[EventType "team-tourn"]
[EventCountry "POL"]
[SourceTitle "playchess.com"]
[Source "ChessBase"]
[SourceQuality "1"]
[TimeControl "40/5400+30:1800+30"]

1. Nf3 {[%emt 0:00:30]} d6 {[%emt 0:00:08]} 2. d4 {[%emt 0:00:47]} f5 {[%emt 0:00:07]} 3. g3 {[%emt 0:04:18]} Nf6 {[%emt 0:00:49]} 4. Bg2 {[%emt 0:00:20]} g6 {[%emt 0:00:06]} 5. b3 {[%emt 0:01:13]} Bg7 {[%emt 0:01:03]} 6. Bb2 {[%emt 0:00:20]} O-O {[%emt 0:00:09]} 7. O-O {[%emt 0:00:44]} Nc6 {[%emt 0:00:06]} 8. d5 {[%emt 0:05:02]} Nb4 {[%emt 0:00:09]} 9. c4 {[%emt 0:01:40]} c5 {[%emt 0:00:16]} 10. a3 {[%emt 0:08:55]} Na6 {[%emt 0:00:13]} 11. Nc3 {[%emt 0:00:10]} Nc7 {[%emt 0:00:06]} 12. Qc2 {[%emt 0:02:54]} a6 {[%emt 0:01:00]} 13. b4 {[%emt 0:10:02]} b6 {[%emt 0:00:17]} 14. Rfd1 {[%emt 0:01:01]} Rb8 {[%emt 0:01:35]} 15. e3 {[%emt 0:04:33]} h6 {[%emt 0:04:09]} 16. Nh4 {[%emt 0:06:46]} Qe8 {[%emt 0:00:29]} 17. Rab1 {[%emt 0:05:05]} Ng4 {[%emt 0:02:11]} 18. Ne2 {[%emt 0:10:34]} g5 {[%emt 0:01:33]} 19. Bxg7 {[%emt 0:02:19]} Kxg7 {[%emt 0:00:09]} 20. Nf3 {[%emt 0:02:21]} Qh5 {[%emt 0:00:41]} 21. bxc5 {[%emt 0:00:55]} dxc5 {[%emt 0:00:10]} 22. Qc3+ {[%emt 0:04:05]} Kh7 {[%emt 0:01:01]} 23. d6 {[%emt 0:05:15]} exd6 {[%emt 0:00:20]} 24. Rxd6 {[%emt 0:00:20]} Nxh2 {[%emt 0:01:17]} 25. Nxh2 {[%emt 0:00:15]} Qxe2 {[%emt 0:00:08]} 26. Bf3 {[%emt 0:00:09]} Qa2 {[%emt 0:00:39]} 27. Ra1 {[%emt 0:00:08]} 1-0

[Event "WSTCC-65 2024"]
[Site "Krakow"]
[Date "2024.07.02"]
[Round "1.11"]
[White "Stebbings, Anthony J"]
[Black "Moyses Sobrinho, Elias"]
[Result "1/2-1/2"]
[ECO "D96"]
[WhiteElo "2240"]
[BlackElo "1908"]
[Annotator "TA"]
[PlyCount "85"]
[EventDate "2024.07.01"]
[EventType "team-tourn"]
[EventCountry "POL"]
[SourceTitle "playchess.com"]
[Source "ChessBase"]
[SourceQuality "1"]
[TimeControl "40/5400+30:1800+30"]

{[%evp 12,85,30,29,41,37,66,35,76,60,63,39,37,50,77,43,107,72,103,91,100,101,93,61,97,105,88,7,42,59,49,39,52,50,42,48,51,32,47,37,24,0,0,-14,0,-6,0,0,0,0,0,0,0,0,0,0,0,0,0,0,0,0,0,0,0,0,20,17,31,0,0,0,0,0,0,0]} 1. d4 {[%emt 0:00:02]} Nf6 {[%emt 0:00:55]} 2. c4 {[%emt 0:00:06]} g6 {[%emt 0:00:12]} 3. Nc3 {[%emt 0:00:06]} d5 {[%emt 0:00:34]} 4. Nf3 {[%emt 0:00:07]} Bg7 {[%emt 0:00:40]} 5. Qb3 {[%emt 0:00:09]} c6 {[%emt 0:00:57]} 6. cxd5 {[%emt 0:02:10]} Nxd5 {[%emt 0:04:01]} 7. e4 {[%emt 0:00:55]} Nxc3 {[%emt 0:02:48]} 8. bxc3 {[%emt 0:04:13]} Qb6 {[%emt 0:00:39]} 9. Qa3 {[%emt 0:03:24]} Qc7 {[%emt 0:06:26] Weiß steht etwas besser.} 10. Be2 {[%emt 0:08:40]} O-O {[%emt 0:00:17]} 11. Bg5 {[%emt 0:02:29][%cal Bc1g5,Bg5h4,Bh4g3,Bg3d6,Bd6e7][%mdl 32]} Re8 {[%emt 0:02:07]} 12. O-O {[%emt 0:01:03]} h6 {[%emt 0:00:24]} 13. Bh4 {[%emt 0:01:47]} b6 {[%emt 0:03:05]} (13... Bg4 $14) 14. Rad1 {[%emt 0:03:36]} Bb7 {[%emt 0:01:12]} 15. Bg3 {[%emt 0:03:06]} Qc8 {[%emt 0:01:44]} 16. c4 {[%emt 0:03:54] Weiß steht deutlich aktiver. Die schwarzen Türme stehen passiv.} e6 {[%emt 0:00:34]} 17. Bd6 {[%emt 0:05:27]} Nd7 {[%emt 0:02:08]} 18. e5 {[%emt 0:07:04]} c5 {[%emt 0:01:41] [#]} 19. Qe3 {[%emt 0:01:13]} ({Besser ist} 19. h4 $1 $16) 19... cxd4 {[%emt 0:00:44]} 20. Nxd4 {[%emt 0:00:44][%cal Bf3d4,Bd4b5,Bb5d6][%mdl 32]} Nc5 {[%emt 0:00:23]} 21. Nb5 {[%emt 0:01:38] Schwarz muss nun Bxc5 beachten.} Rd8 {[%emt 0:05:39]} 22. Be7 {[%emt 0:01:42]} Rxd1 {[%emt 0:04:14]} 23. Rxd1 {[%emt 0:00:05]} Nd7 {[%emt 0:00:25][%cal Bc5d7,Bd7f8,Bf8g6][%mdl 32]} 24. Nd6 {[%emt 0:02:47]} Qc7 {[%emt 0:01:49]} 25. Nxb7 {[%emt 0:01:16][%cal Oe7d8] [#] Droht stark Bd8!} Re8 {[%emt 0:01:06]} 26. Bb4 {[%emt 0:09:32]} Qxb7 {[%emt 0:01:22]} 27. f4 {[%emt 0:00:17]} Bf8 {[%emt 0:04:13]} 28. Bxf8 {[%emt 0:00:52]} Nxf8 {[%emt 0:01:38]} 29. h4 {[%emt 0:07:22]} Qe7 {[%emt 0:02:50]} 30. h5 {[%emt 0:07:14]} Rd8 {[%emt 0:05:30]} 31. Rxd8 {[%emt 0:02:19]} Qxd8 {[%emt 0:00:08]} 32. hxg6 {[%emt 0:01:16]} Nxg6 $11 {[%emt 0:02:34][%mdl 4096] Endspiel. KQB-KQN} 33. g3 {[%emt 0:00:44]} Kg7 {[%emt 0:00:21]} 34. Kf2 {[%emt 0:01:11]} Ne7 {[%emt 0:01:50]} 35. Bd3 {[%emt 0:04:37]} Nc6 {[%emt 0:02:18]} 36. Be4 {[%emt 0:06:14]} Na5 {[%emt 0:02:09]} 37. Bd3 {[%emt 0:00:32]} Nc6 {[%emt 0:01:53]} 38. Qe4 {[%emt 0:01:54]} Qd4+ {[%emt 0:01:11]} (38... Kf8 $5) 39. Qxd4 {[%emt 0:01:58]} Nxd4 {[%emt 0:00:07]} 40. Ke3 {[%emt 0:04:30]} Nc6 {[%emt 0:03:29] Die Stellung ist ausgeglichen.} 41. Be4 {[%emt 0:30:38]} Nb8 {[%emt 0:30:25]} 42. Kd4 {[%emt 0:01:13]} Nd7 {[%emt 0:00:10]} 43. Bc2 {[%emt 0:00:00] Gewichteter Fehlerwert: Weiß=0.13 (sehr präzise) /Schwarz=0.10 (sehr präzise) .  Fehler:       	Weiß=1     	Schwarz=1     Ungenau:       	Weiß=5     	Schwarz=6     OK:         	Weiß=8     	Schwarz=18    Bester:       	---       	Schwarz=1} 1/2-1/2

[Event "WSTCC-65 2024"]
[Site "Krakow"]
[Date "2024.07.02"]
[Round "1.11"]
[White "Mueller, Gerhard"]
[Black "Hewson, Brian W R"]
[Result "1/2-1/2"]
[ECO "B15"]
[WhiteElo "2070"]
[BlackElo "2042"]
[Annotator "NA RC"]
[PlyCount "33"]
[EventDate "2024.07.01"]
[EventType "team-tourn"]
[EventCountry "POL"]
[SourceTitle "playchess.com"]
[Source "ChessBase"]
[SourceQuality "1"]
[TimeControl "40/5400+30:1800+30"]

1. e4 {[%emt 0:00:04]} c6 {[%emt 0:00:10]} 2. d4 {[%emt 0:00:06]} d5 {[%emt 0:00:06]} 3. Nd2 {[%emt 0:02:14]} dxe4 {[%emt 0:00:22]} 4. Nxe4 {[%emt 0:00:07]} Nf6 {[%emt 0:00:55]} 5. Nxf6+ {[%emt 0:04:08]} exf6 {[%emt 0:00:06]} 6. Nf3 {[%emt 0:00:31]} Bd6 {[%emt 0:03:08]} 7. Be2 {[%emt 0:02:26]} O-O {[%emt 0:01:01]} 8. O-O {[%emt 0:00:06]} Re8 {[%emt 0:00:14]} 9. Be3 {[%emt 0:03:03]} Nd7 {[%emt 0:00:42]} 10. Qd2 {[%emt 0:01:54]} Nf8 {[%emt 0:00:22]} 11. Rfe1 {[%emt 0:01:35]} Ng6 {[%emt 0:14:09]} 12. Rad1 {[%emt 0:03:10]} Qc7 {[%emt 0:06:44]} 13. h3 {[%emt 0:08:12]} f5 {[%emt 0:07:06]} 14. Qd3 {[%emt 0:02:44]} Bf4 {[%emt 0:11:08]} 15. Bf1 {[%emt 0:01:42]} Bxe3 {[%emt 0:06:36]} 16. Rxe3 {[%emt 0:03:10]} Bd7 {[%emt 0:08:55]} 17. Rde1 {[%emt 0:03:02]} 1/2-1/2

[Event "WSTCC-65 2024"]
[Site "Krakow"]
[Date "2024.07.02"]
[Round "1.12"]
[White "Hughes, Anthony"]
[Black "Roos, Jean-Luc"]
[Result "0-1"]
[ECO "A22"]
[WhiteElo "1913"]
[BlackElo "2161"]
[Annotator "RC"]
[PlyCount "100"]
[EventDate "2024.07.01"]
[EventType "team-tourn"]
[EventCountry "POL"]
[SourceTitle "playchess.com"]
[Source "ChessBase"]
[SourceQuality "1"]
[TimeControl "40/5400+30:1800+30"]

1. c4 {[%emt 0:00:05]} e5 {[%emt 0:00:07]} 2. Nc3 {[%emt 0:00:04]} Nf6 {[%emt 0:00:10]} 3. g3 {[%emt 0:00:07]} c6 {[%emt 0:00:08]} 4. Nf3 {[%emt 0:00:07]} e4 {[%emt 0:00:12]} 5. Nd4 {[%emt 0:00:19]} Qb6 {[%emt 0:00:13]} 6. Nb3 {[%emt 0:02:14]} a5 {[%emt 0:00:28]} 7. d4 {[%emt 0:11:12]} a4 {[%emt 0:08:49]} 8. Nd2 {[%emt 0:09:12]} Qxd4 {[%emt 0:09:33]} 9. Bg2 {[%emt 0:01:47]} d5 {[%emt 0:13:19]} 10. cxd5 {[%emt 0:08:31]} cxd5 {[%emt 0:01:28]} 11. e3 {[%emt 0:17:23]} Qb4 {[%emt 0:05:09]} 12. a3 {[%emt 0:01:30]} Qa5 {[%emt 0:01:46]} 13. b4 {[%emt 0:08:36]} axb3 {[%emt 0:00:41]} 14. Qxb3 {[%emt 0:00:08]} Nbd7 {[%emt 0:04:06]} 15. O-O {[%emt 0:03:20]} Be7 {[%emt 0:11:48]} 16. f3 {[%emt 0:06:00]} Nc5 {[%emt 0:03:15]} 17. Qb5+ {[%emt 0:02:09]} Qxb5 {[%emt 0:01:22]} 18. Nxb5 {[%emt 0:00:05]} O-O {[%emt 0:01:32]} 19. Bb2 {[%emt 0:02:42]} Ra5 {[%emt 0:04:43]} 20. Nd4 {[%emt 0:11:17]} exf3 {[%emt 0:02:43]} 21. Bxf3 {[%emt 0:01:52]} Nd3 {[%emt 0:03:08]} 22. N4b3 {[%emt 0:06:23]} Ra4 {[%emt 0:01:35]} 23. Bd4 {[%emt 0:00:31]} Bh3 {[%emt 0:06:30]} 24. Rfb1 {[%emt 0:01:36]} Rc8 {[%emt 0:02:30]} 25. Nc1 {[%emt 0:01:54]} Nxc1 {[%emt 0:07:03]} 26. Rxc1 {[%emt 0:00:04]} Rxa3 {[%emt 0:02:24]} 27. Kf2 {[%emt 0:03:04]} Rxa1 {[%emt 0:00:37]} 28. Rxc8+ {[%emt 0:00:35]} Bxc8 {[%emt 0:00:07]} 29. Bxa1 {[%emt 0:00:03]} Be6 {[%emt 0:00:56]} 30. Nb3 {[%emt 0:00:28]} Ng4+ {[%emt 0:00:23]} 31. Bxg4 {[%emt 0:00:33]} Bxg4 {[%emt 0:00:07]} 32. Bc3 {[%emt 0:00:41]} f6 {[%emt 0:01:02]} 33. Nc1 {[%emt 0:00:19]} Kf7 {[%emt 0:00:43]} 34. Nd3 {[%emt 0:00:23]} Bf5 {[%emt 0:00:27]} 35. Nb4 {[%emt 0:00:15]} Ke6 {[%emt 0:00:18]} 36. Ke2 {[%emt 0:00:53]} Bd6 {[%emt 0:00:30]} 37. Kd2 {[%emt 0:00:40]} Be5 {[%emt 0:00:24]} 38. Bd4 {[%emt 0:00:19]} h5 {[%emt 0:00:26]} 39. Ke2 {[%emt 0:00:09]} Bd6 {[%emt 0:00:38]} 40. Bc3 {[%emt 0:00:28]} h4 {[%emt 0:00:18]} 41. Kf2 {[%emt 0:30:39]} Be4 {[%emt 0:31:27]} 42. Na2 {[%emt 0:00:50]} Kf5 {[%emt 0:01:38]} 43. Nc1 {[%emt 0:00:00]} hxg3+ {[%emt 0:00:00]} 44. hxg3 {[%emt 0:00:00]} Kg4 {[%emt 0:00:00]} 45. Ne2 {[%emt 0:00:00]} b5 {[%emt 0:00:00]} 46. Nf4 {[%emt 0:00:00]} b4 {[%emt 0:00:00]} 47. Bd4 {[%emt 0:00:00]} b3 {[%emt 0:00:00]} 48. Ke2 {[%emt 0:00:00]} Be5 {[%emt 0:00:00]} 49. Kd2 {[%emt 0:00:00]} Bxd4 {[%emt 0:00:00]} 50. exd4 {[%emt 0:00:00]} b2 {[%emt 0:00:00]} 0-1

[Event "WSTCC-65 2024"]
[Site "Krakow"]
[Date "2024.07.02"]
[Round "1.12"]
[White "Vieira, Alexandre Letizio"]
[Black "Beaumont, Chris R"]
[Result "1/2-1/2"]
[ECO "B00"]
[WhiteElo "1825"]
[BlackElo "2198"]
[Annotator "RC"]
[PlyCount "59"]
[EventDate "2024.07.01"]
[EventType "team-tourn"]
[EventCountry "POL"]
[SourceTitle "playchess.com"]
[Source "ChessBase"]
[SourceQuality "1"]
[TimeControl "40/5400+30:1800+30"]

1. e4 {[%emt 0:00:04]} d6 {[%emt 0:00:30]} 2. d3 {[%emt 0:00:12]} g6 {[%emt 0:00:13]} 3. Nf3 {[%emt 0:00:09]} Bg7 {[%emt 0:00:08]} 4. g3 {[%emt 0:00:11]} c5 {[%emt 0:00:09]} 5. Bg2 {[%emt 0:00:06]} Nc6 {[%emt 0:00:07]} 6. O-O {[%emt 0:00:06]} Nf6 {[%emt 0:01:19]} 7. c3 {[%emt 0:00:25]} O-O {[%emt 0:00:28]} 8. Re1 {[%emt 0:00:24]} e5 {[%emt 0:02:00]} 9. Nbd2 {[%emt 0:01:09]} h6 {[%emt 0:06:04]} 10. a4 {[%emt 0:06:45]} Be6 {[%emt 0:01:39]} 11. h3 {[%emt 0:01:01]} a6 {[%emt 0:05:22]} 12. Nf1 {[%emt 0:13:03]} Rb8 {[%emt 0:20:55]} 13. Bd2 {[%emt 0:06:19]} b5 {[%emt 0:09:33]} 14. axb5 {[%emt 0:01:31]} axb5 15. Ne3 Ra8 {[%emt 0:05:58]} 16. Qc2 {[%emt 0:04:57]} Qd7 {[%emt 0:01:29]} 17. Kh2 {[%emt 0:00:18]} Qb7 {[%emt 0:01:01]} 18. Nh4 {[%emt 0:04:14]} b4 {[%emt 0:12:39]} 19. Nd5 {[%emt 0:04:03]} bxc3 {[%emt 0:03:33]} 20. bxc3 {[%emt 0:00:20]} Rxa1 {[%emt 0:01:04]} 21. Rxa1 {[%emt 0:00:06]} Bxd5 {[%emt 0:00:24]} 22. Rb1 {[%emt 0:00:44]} Qa8 {[%emt 0:03:55]} 23. exd5 {[%emt 0:00:08]} Ne7 {[%emt 0:00:12]} 24. c4 {[%emt 0:00:39]} Rb8 {[%emt 0:00:42]} 25. Bc3 {[%emt 0:05:41]} g5 {[%emt 0:05:59]} 26. Nf3 {[%emt 0:02:40]} Nf5 {[%emt 0:00:43]} 27. Rxb8+ {[%emt 0:00:51]} Qxb8 {[%emt 0:00:02]} 28. Nd2 {[%emt 0:03:22]} Nd4 {[%emt 0:01:41]} 29. Bxd4 {[%emt 0:04:47]} exd4 {[%emt 0:00:19]} 30. Qb3 {[%emt 0:03:02]} 1/2-1/2

[Event "WSTCC-65 2024"]
[Site "Krakow"]
[Date "2024.07.02"]
[Round "1.13"]
[White "Sanetra, Piotr"]
[Black "Ftacnik, Lubomir"]
[Result "1/2-1/2"]
[ECO "B22"]
[WhiteElo "2024"]
[BlackElo "2452"]
[Annotator "TA"]
[PlyCount "57"]
[EventDate "2024.07.01"]
[EventType "team-tourn"]
[EventCountry "POL"]
[SourceTitle "playchess.com"]
[Source "ChessBase"]
[SourceQuality "1"]
[TimeControl "40/5400+30:1800+30"]

{[%evp 15,57,22,15,15,10,18,26,2,14,8,12,24,22,20,42,29,34,32,22,-7,-1,0,0,-9,-7,-58,8,14,40,48,53,26,26,29,29,26,55,53,52,47,46,29,30,37]} 1. e4 {[%emt 0:00:04][%cal Be2e4,Be4e5][%mdl 32]} c5 {[%emt 0:00:08]} 2. c3 {[%emt 0:00:09]} Nf6 {[%emt 0:00:07]} 3. e5 {[%emt 0:00:07]} Nd5 {[%emt 0:00:07]} 4. d4 {[%emt 0:00:16]} cxd4 {[%emt 0:00:15]} 5. Qxd4 {[%emt 0:00:17]} e6 {[%emt 0:00:23]} 6. Nf3 {[%emt 0:00:10]} Nc6 {[%emt 0:00:27]} 7. Qe4 {[%emt 0:00:09]} Qc7 {[%emt 0:00:48]} 8. Bc4 {[%emt 0:13:12]} Nde7 {[%emt 0:02:29]} 9. Bf4 {[%emt 0:03:20]} b6 {[%emt 0:11:36]} 10. O-O {[%emt 0:02:45]} Bb7 {[%emt 0:23:43] [#] White must now prevent ...Na5.} 11. Qe2 {[%emt 0:00:34]} Ng6 {[%emt 0:00:43]} 12. Bg3 {[%emt 0:00:29]} Nce7 {[%emt 0:00:56][%cal Bc6e7,Be7d5,Bd5e3][%mdl 32]} 13. Nd4 {[%emt 0:13:52]} Nd5 {[%emt 0:04:30]} 14. f4 {[%emt 0:10:53] [#] f5 would now be deadly.} Ne3 {[%emt 0:05:34]} 15. Qxe3 {[%emt 0:16:57]} Qxc4 {[%emt 0:00:04]} 16. Nd2 {[%emt 0:00:21]} Qd5 {[%emt 0:01:17][%csl Gb7][%cal Rd5g2]} 17. N2f3 {[%emt 0:05:11]} Bc5 {[%emt 0:02:30]} 18. b4 {[%emt 0:01:14]} Bxd4 {[%emt 0:01:09]} 19. Qxd4 {[%emt 0:00:14]} Rc8 {[%emt 0:08:22]} 20. Rfc1 {[%emt 0:02:10]} (20. Rac1 $11) 20... Ne7 {[%emt 0:02:41]} ({Better is} 20... h5 $1 $15 21. h4 Qb5) 21. c4 $36 {[%emt 0:01:16][%cal Bc3c4,Bc4c5][%mdl 2080] Black is under pressure.} Qe4 {[%emt 0:02:19]} 22. Qxe4 {[%emt 0:00:56]} Bxe4 {[%emt 0:00:02]} 23. Nd4 {[%emt 0:00:31] Strongly threatening Nb5.} Nf5 {[%emt 0:09:56]} 24. Nxf5 {[%emt 0:00:56]} exf5 {[%emt 0:00:38]} 25. Bf2 {[%emt 0:00:41]} O-O {[%emt 0:00:50]} 26. c5 {[%emt 0:00:34]} b5 {[%emt 0:01:02]} 27. a4 {[%emt 0:02:51]} a6 {[%emt 0:00:25]} 28. axb5 {[%emt 0:01:21]} axb5 {[%emt 0:00:02]} 29. Bd4 {[%emt 0:00:40] Weighted Error Value: White=0.09 (flawless) /Black=0.10 (very precise) .  Mistake:       	White=1     	Black=1      Inaccurate:     	White=2     	Black=2      OK:         	White=10    	Black=10     Best:        	White=1     	Black=1} 1/2-1/2